{"text_format":"3","workbook":"xlsx","n_sheets":2,"sheets":["Registro progetti","Configurazione"],"not_rendered":{"defined_names":6},"read":"whole","date_system":"1900"}

{"sheet":"Registro progetti","index":0,"n_rows":13,"n_cols":15,"rows_kept":13}
[null,"Registro progetti"]
[null,null,"Percentuale superiore/inferiore da contrassegnare: ",{"v":0.25,"d":"25%"}]
[]
[null,"Progetto","Categoria","Assegnato a","Inizio\nprevisto","Fine \nprevista","Lavoro previsto (in ore)","Durata prevista (in giorni)","Inizio \neffettivo","Fine\neffettiva","Icona del contrassegno per il lavoro effettivo (in ore) superiore/inferiore al previsto","Lavoro effettivo (in ore)","Icona del contrassegno per la durata effettiva (in giorni) superiore/inferiore al previsto","Durata effettiva (in giorni)","Note"]
[null,"Progetto 1","Categoria 1","Dipendente 1",{"$f":"TODAY()-65","v":"2016-08-17"},{"$f":"TODAY()-5","v":"2016-10-16"},210,{"$f":"IF(COUNTA('Registro progetti'!$E5,'Registro progetti'!$F5)<>2,\"\",DAYS360('Registro progetti'!$E5,'Registro progetti'!$F5,FALSE))","v":59},{"$f":"TODAY()-65","v":"2016-08-17"},{"$f":"TODAY()","v":"2016-10-21"},{"$f":"IFERROR(IF(RegistroProgetti[Lavoro effettivo (in ore)]=0,\"\",IF(ABS((RegistroProgetti[[#This Row],[Lavoro effettivo (in ore)]]-RegistroProgetti[[#This Row],[Lavoro previsto (in ore)]])/RegistroProgetti[[#This Row],[Lavoro previsto (in ore)]])>ContrassegnoPercentuale,1,0)),\"\")","v":1},300,{"$f":"IFERROR(IF(RegistroProgetti[Durata effettiva (in giorni)]=0,\"\",IF(ABS((RegistroProgetti[[#This Row],[Durata effettiva (in giorni)]]-RegistroProgetti[[#This Row],[Durata prevista (in giorni)]])/RegistroProgetti[[#This Row],[Durata prevista (in giorni)]])>ContrassegnoPercentuale,1,0)),\"\")","v":0},{"$f":"IF(COUNTA('Registro progetti'!$I5,'Registro progetti'!$J5)<>2,\"\",DAYS360('Registro progetti'!$I5,'Registro progetti'!$J5,FALSE))","v":64}]
[null,"Progetto 2","Categoria 2","Dipendente 4",{"$f":"TODAY()-41","v":"2016-09-10"},{"$f":"TODAY()-10","v":"2016-10-11"},400,{"$f":"IF(COUNTA('Registro progetti'!$E6,'Registro progetti'!$F6)<>2,\"\",DAYS360('Registro progetti'!$E6,'Registro progetti'!$F6,FALSE))","v":31},{"$f":"TODAY()-41","v":"2016-09-10"},{"$f":"TODAY()-7","v":"2016-10-14"},{"$f":"IFERROR(IF(RegistroProgetti[Lavoro effettivo (in ore)]=0,\"\",IF(ABS((RegistroProgetti[[#This Row],[Lavoro effettivo (in ore)]]-RegistroProgetti[[#This Row],[Lavoro previsto (in ore)]])/RegistroProgetti[[#This Row],[Lavoro previsto (in ore)]])>ContrassegnoPercentuale,1,0)),\"\")","v":0},390,{"$f":"IFERROR(IF(RegistroProgetti[Durata effettiva (in giorni)]=0,\"\",IF(ABS((RegistroProgetti[[#This Row],[Durata effettiva (in giorni)]]-RegistroProgetti[[#This Row],[Durata prevista (in giorni)]])/RegistroProgetti[[#This Row],[Durata prevista (in giorni)]])>ContrassegnoPercentuale,1,0)),\"\")","v":0},{"$f":"IF(COUNTA('Registro progetti'!$I6,'Registro progetti'!$J6)<>2,\"\",DAYS360('Registro progetti'!$I6,'Registro progetti'!$J6,FALSE))","v":34}]
[null,"Progetto 3","Categoria 1","Dipendente 2",{"$f":"TODAY()-100","v":"2016-07-13"},{"$f":"TODAY()-40","v":"2016-09-11"},500,{"$f":"IF(COUNTA('Registro progetti'!$E7,'Registro progetti'!$F7)<>2,\"\",DAYS360('Registro progetti'!$E7,'Registro progetti'!$F7,FALSE))","v":58},{"$f":"TODAY()-100","v":"2016-07-13"},{"$f":"TODAY()-27","v":"2016-09-24"},{"$f":"IFERROR(IF(RegistroProgetti[Lavoro effettivo (in ore)]=0,\"\",IF(ABS((RegistroProgetti[[#This Row],[Lavoro effettivo (in ore)]]-RegistroProgetti[[#This Row],[Lavoro previsto (in ore)]])/RegistroProgetti[[#This Row],[Lavoro previsto (in ore)]])>ContrassegnoPercentuale,1,0)),\"\")","v":0},500,{"$f":"IFERROR(IF(RegistroProgetti[Durata effettiva (in giorni)]=0,\"\",IF(ABS((RegistroProgetti[[#This Row],[Durata effettiva (in giorni)]]-RegistroProgetti[[#This Row],[Durata prevista (in giorni)]])/RegistroProgetti[[#This Row],[Durata prevista (in giorni)]])>ContrassegnoPercentuale,1,0)),\"\")","v":0},{"$f":"IF(COUNTA('Registro progetti'!$I7,'Registro progetti'!$J7)<>2,\"\",DAYS360('Registro progetti'!$I7,'Registro progetti'!$J7,FALSE))","v":71}]
[null,"Progetto 4","Categoria 2","Dipendente 3",{"$f":"TODAY()-90","v":"2016-07-23"},{"$f":"TODAY()-80","v":"2016-08-02"},250,{"$f":"IF(COUNTA('Registro progetti'!$E8,'Registro progetti'!$F8)<>2,\"\",DAYS360('Registro progetti'!$E8,'Registro progetti'!$F8,FALSE))","v":9},{"$f":"TODAY()-90","v":"2016-07-23"},{"$f":"TODAY()-71","v":"2016-08-11"},{"$f":"IFERROR(IF(RegistroProgetti[Lavoro effettivo (in ore)]=0,\"\",IF(ABS((RegistroProgetti[[#This Row],[Lavoro effettivo (in ore)]]-RegistroProgetti[[#This Row],[Lavoro previsto (in ore)]])/RegistroProgetti[[#This Row],[Lavoro previsto (in ore)]])>ContrassegnoPercentuale,1,0)),\"\")","v":0},276,{"$f":"IFERROR(IF(RegistroProgetti[Durata effettiva (in giorni)]=0,\"\",IF(ABS((RegistroProgetti[[#This Row],[Durata effettiva (in giorni)]]-RegistroProgetti[[#This Row],[Durata prevista (in giorni)]])/RegistroProgetti[[#This Row],[Durata prevista (in giorni)]])>ContrassegnoPercentuale,1,0)),\"\")","v":1},{"$f":"IF(COUNTA('Registro progetti'!$I8,'Registro progetti'!$J8)<>2,\"\",DAYS360('Registro progetti'!$I8,'Registro progetti'!$J8,FALSE))","v":18}]
[null,"Progetto 5","Categoria 3","Dipendente 2",{"$f":"TODAY()-90","v":"2016-07-23"},{"$f":"TODAY()-50","v":"2016-09-01"},300,{"$f":"IF(COUNTA('Registro progetti'!$E9,'Registro progetti'!$F9)<>2,\"\",DAYS360('Registro progetti'!$E9,'Registro progetti'!$F9,FALSE))","v":38},{"$f":"TODAY()-90","v":"2016-07-23"},{"$f":"TODAY()-44","v":"2016-09-07"},{"$f":"IFERROR(IF(RegistroProgetti[Lavoro effettivo (in ore)]=0,\"\",IF(ABS((RegistroProgetti[[#This Row],[Lavoro effettivo (in ore)]]-RegistroProgetti[[#This Row],[Lavoro previsto (in ore)]])/RegistroProgetti[[#This Row],[Lavoro previsto (in ore)]])>ContrassegnoPercentuale,1,0)),\"\")","v":0},310,{"$f":"IFERROR(IF(RegistroProgetti[Durata effettiva (in giorni)]=0,\"\",IF(ABS((RegistroProgetti[[#This Row],[Durata effettiva (in giorni)]]-RegistroProgetti[[#This Row],[Durata prevista (in giorni)]])/RegistroProgetti[[#This Row],[Durata prevista (in giorni)]])>ContrassegnoPercentuale,1,0)),\"\")","v":0},{"$f":"IF(COUNTA('Registro progetti'!$I9,'Registro progetti'!$J9)<>2,\"\",DAYS360('Registro progetti'!$I9,'Registro progetti'!$J9,FALSE))","v":44}]
[null,"Progetto 6","Categoria 4","Dipendente 4",{"$f":"TODAY()-60","v":"2016-08-22"},{"$f":"TODAY()-50","v":"2016-09-01"},500,{"$f":"IF(COUNTA('Registro progetti'!$E10,'Registro progetti'!$F10)<>2,\"\",DAYS360('Registro progetti'!$E10,'Registro progetti'!$F10,FALSE))","v":9},{"$f":"TODAY()-60","v":"2016-08-22"},{"$f":"TODAY()-45","v":"2016-09-06"},{"$f":"IFERROR(IF(RegistroProgetti[Lavoro effettivo (in ore)]=0,\"\",IF(ABS((RegistroProgetti[[#This Row],[Lavoro effettivo (in ore)]]-RegistroProgetti[[#This Row],[Lavoro previsto (in ore)]])/RegistroProgetti[[#This Row],[Lavoro previsto (in ore)]])>ContrassegnoPercentuale,1,0)),\"\")","v":0},510,{"$f":"IFERROR(IF(RegistroProgetti[Durata effettiva (in giorni)]=0,\"\",IF(ABS((RegistroProgetti[[#This Row],[Durata effettiva (in giorni)]]-RegistroProgetti[[#This Row],[Durata prevista (in giorni)]])/RegistroProgetti[[#This Row],[Durata prevista (in giorni)]])>ContrassegnoPercentuale,1,0)),\"\")","v":1},{"$f":"IF(COUNTA('Registro progetti'!$I10,'Registro progetti'!$J10)<>2,\"\",DAYS360('Registro progetti'!$I10,'Registro progetti'!$J10,FALSE))","v":14}]
[null,"Progetto 7","Categoria 5","Dipendente 1",{"$f":"TODAY()-44","v":"2016-09-07"},{"$f":"TODAY()-20","v":"2016-10-01"},750,{"$f":"IF(COUNTA('Registro progetti'!$E11,'Registro progetti'!$F11)<>2,\"\",DAYS360('Registro progetti'!$E11,'Registro progetti'!$F11,FALSE))","v":24},{"$f":"TODAY()-44","v":"2016-09-07"},{"$f":"TODAY()-15","v":"2016-10-06"},{"$f":"IFERROR(IF(RegistroProgetti[Lavoro effettivo (in ore)]=0,\"\",IF(ABS((RegistroProgetti[[#This Row],[Lavoro effettivo (in ore)]]-RegistroProgetti[[#This Row],[Lavoro previsto (in ore)]])/RegistroProgetti[[#This Row],[Lavoro previsto (in ore)]])>ContrassegnoPercentuale,1,0)),\"\")","v":0},790,{"$f":"IFERROR(IF(RegistroProgetti[Durata effettiva (in giorni)]=0,\"\",IF(ABS((RegistroProgetti[[#This Row],[Durata effettiva (in giorni)]]-RegistroProgetti[[#This Row],[Durata prevista (in giorni)]])/RegistroProgetti[[#This Row],[Durata prevista (in giorni)]])>ContrassegnoPercentuale,1,0)),\"\")","v":0},{"$f":"IF(COUNTA('Registro progetti'!$I11,'Registro progetti'!$J11)<>2,\"\",DAYS360('Registro progetti'!$I11,'Registro progetti'!$J11,FALSE))","v":29}]
[null,"Progetto 8","Categoria 2","Dipendente 1",{"$f":"TODAY()-39","v":"2016-09-12"},{"$f":"TODAY()","v":"2016-10-21"},450,{"$f":"IF(COUNTA('Registro progetti'!$E12,'Registro progetti'!$F12)<>2,\"\",DAYS360('Registro progetti'!$E12,'Registro progetti'!$F12,FALSE))","v":39},{"$f":"TODAY()-45","v":"2016-09-06"},{"$f":"TODAY()-5","v":"2016-10-16"},{"$f":"IFERROR(IF(RegistroProgetti[Lavoro effettivo (in ore)]=0,\"\",IF(ABS((RegistroProgetti[[#This Row],[Lavoro effettivo (in ore)]]-RegistroProgetti[[#This Row],[Lavoro previsto (in ore)]])/RegistroProgetti[[#This Row],[Lavoro previsto (in ore)]])>ContrassegnoPercentuale,1,0)),\"\")","v":0},430,{"$f":"IFERROR(IF(RegistroProgetti[Durata effettiva (in giorni)]=0,\"\",IF(ABS((RegistroProgetti[[#This Row],[Durata effettiva (in giorni)]]-RegistroProgetti[[#This Row],[Durata prevista (in giorni)]])/RegistroProgetti[[#This Row],[Durata prevista (in giorni)]])>ContrassegnoPercentuale,1,0)),\"\")","v":0},{"$f":"IF(COUNTA('Registro progetti'!$I12,'Registro progetti'!$J12)<>2,\"\",DAYS360('Registro progetti'!$I12,'Registro progetti'!$J12,FALSE))","v":40}]
[null,"Progetto 9","Categoria 4","Dipendente 1","2016-02-05","2016-06-09",250,{"$f":"IF(COUNTA('Registro progetti'!$E13,'Registro progetti'!$F13)<>2,\"\",DAYS360('Registro progetti'!$E13,'Registro progetti'!$F13,FALSE))","v":124},"2016-03-05","2016-05-05",{"$f":"IFERROR(IF(RegistroProgetti[Lavoro effettivo (in ore)]=0,\"\",IF(ABS((RegistroProgetti[[#This Row],[Lavoro effettivo (in ore)]]-RegistroProgetti[[#This Row],[Lavoro previsto (in ore)]])/RegistroProgetti[[#This Row],[Lavoro previsto (in ore)]])>ContrassegnoPercentuale,1,0)),\"\")","v":0},200,{"$f":"IFERROR(IF(RegistroProgetti[Durata effettiva (in giorni)]=0,\"\",IF(ABS((RegistroProgetti[[#This Row],[Durata effettiva (in giorni)]]-RegistroProgetti[[#This Row],[Durata prevista (in giorni)]])/RegistroProgetti[[#This Row],[Durata prevista (in giorni)]])>ContrassegnoPercentuale,1,0)),\"\")","v":1},{"$f":"IF(COUNTA('Registro progetti'!$I13,'Registro progetti'!$J13)<>2,\"\",DAYS360('Registro progetti'!$I13,'Registro progetti'!$J13,FALSE))","v":60}]

{"sheet":"Configurazione","index":1,"n_rows":10,"n_cols":3,"rows_kept":10}
[null,"Configurazione"]
[]
[]
[null,"Nome categoria","Nome dipendente"]
[null,"Categoria 1","Dipendente 1"]
[null,"Categoria 2","Dipendente 2"]
[null,"Categoria 3","Dipendente 3"]
[null,"Categoria 4","Dipendente 4"]
[null,"Categoria 5","Dipendente 5"]
[null,"Categoria 6","Dipendente 6"]